fUST/lending_fUST_20241213
["ID","MTS","AMOUNT","RATE_DAILY","PERIOD"]
[345214850,1734091845872,-500.0,0.00027945,7]
[345214851,1734091845882,-1225.31,0.00027945,7]
[345214852,1734091845892,-500.0,0.00027945,7]
[345214853,1734091845902,-500.0,0.00027945,7]
[345214854,1734091845912,-500.0,0.00027945,7]
[345214855,1734091845921,-500.0,0.00027945,7]
[345214856,1734091845931,-500.0,0.00027945,7]
[345214857,1734091845940,-1341.25,0.00027945,7]
[345214858,1734091845950,-500.0,0.00027945,7]
[345214859,1734091845959,-500.0,0.00027945,7]
[345214860,1734091845969,-270.33223465,0.00027945,7]
[345214861,1734091845978,-575.59,0.00027945,7]
[345214862,1734091845989,-500.0,0.00027945,7]
[345214863,1734091846000,-500.0,0.00027945,7]
[345214864,1734091846009,-546.88,0.00027945,7]
[345214865,1734091846019,-500.0,0.00027945,7]
[345214866,1734091846029,-552.93,0.00027945,7]
[345214867,1734091846039,-590.09536467,0.00027945,7]
[345214868,1734091846048,-260.80398495,0.00027945,7]
[345214869,1734091846058,-651.03,0.00027945,7]
[345214870,1734091846068,-168.0,0.00027945,7]
[345214871,1734091846078,-500.0,0.00027945,7]
[345214872,1734091846087,-500.0,0.00027945,7]
[345214874,1734091846097,-500.0,0.00027945,7]
[345214876,1734091846107,-1089.68,0.00027945,7]
[345214878,1734091846117,-500.0,0.00027945,7]
[345214880,1734091846127,-500.0,0.00027945,7]
[345214882,1734091846136,-500.0,0.00027945,7]
[345214884,1734091846146,-733.84,0.00027945,7]
[345214886,1734091846155,-500.0,0.00027945,7]
[345214888,1734091846164,-500.0,0.00027945,7]
[345214890,1734091846174,-500.0,0.00027945,7]
[345214892,1734091846184,-500.0,0.00027945,7]
[345214894,1734091846194,-1107.91,0.00027945,7]
[345214895,1734091846203,-500.0,0.00027945,7]
[345214896,1734091846213,-500.0,0.00027945,7]
[345214897,1734091846223,-150.02,0.00027945,7]
[345214898,1734091846233,-500.0,0.00027945,7]
[345214899,1734091846243,-150.12,0.00027945,7]
[345214900,1734091846252,-151.0,0.00027945,7]
[345214901,1734091846263,-500.0,0.00027945,7]
[345214902,1734091846273,-151.0,0.00027945,7]
[345214903,1734091846283,-151.0,0.00027945,7]
[345214904,1734091846292,-693.88,0.00027945,7]
[345214905,1734091846302,-150.35372072,0.00027945,7]
[345214906,1734091846314,-684.71,0.00027945,7]
[345214907,1734091846324,-500.0,0.00027945,7]
[345214908,1734091846334,-857.5,0.00027945,7]
[345214909,1734091846343,-500.0,0.00027945,7]
[345214910,1734091846353,-1568.0,0.00027945,7]
[345214911,1734091846363,-500.0,0.00027945,7]
[345214912,1734091846372,-500.0,0.00027945,7]
[345214913,1734091846381,-1086.94,0.00027945,7]
[345214914,1734091846391,-500.0,0.00027945,7]
[345214915,1734091846401,-500.0,0.00027945,7]
[345214916,1734091846410,-1844.52,0.00027945,7]
[345214917,1734091846419,-500.0,0.00027945,7]
[345214918,1734091846428,-500.0,0.00027945,7]
[345214919,1734091846438,-729.39,0.00027945,7]
[345214920,1734091846447,-500.0,0.00027945,7]
[345214921,1734091846457,-625.06,0.00027945,7]
[345214922,1734091846467,-500.0,0.00027945,7]
[345214923,1734091846477,-926.09,0.00027945,7]
[345214924,1734091846487,-500.0,0.00027945,7]
[345214925,1734091846497,-500.0,0.00027945,7]
[345214926,1734091846506,-500.0,0.00027945,7]
[345214927,1734091846516,-150.02,0.00027945,7]
[345214928,1734091846526,-500.0,0.00027945,7]
[345214929,1734091846535,-150.12,0.00027945,7]
[345214930,1734091846545,-500.0,0.00027945,7]
[345214931,1734091846555,-500.0,0.00027945,7]
[345214932,1734091846565,-500.0,0.00027945,7]
[345214933,1734091846575,-500.0,0.00027945,7]
[345214934,1734091846585,-3595.28,0.00027945,7]
[345214935,1734091846595,-821.18,0.00027945,7]
[345214936,1734091846604,-535.82,0.00027945,7]
[345214937,1734091846614,-539.01,0.00027945,7]
[345214938,1734091846624,-819.26,0.00027945,7]
[345214939,1734091846633,-500.0,0.00027945,7]
[345214940,1734091846643,-339.22781923,0.00027945,7]
[345214941,1734091846653,-500.0,0.00027945,7]
[345214942,1734091846664,-500.0,0.00027945,7]
[345214943,1734091846673,-500.0,0.00027945,7]
[345214944,1734091846683,-677.7,0.00027945,7]
[345214945,1734091846692,-500.0,0.00027945,7]
[345214946,1734091846702,-568.12,0.00027945,7]
[345214947,1734091846712,-151.0,0.00027945,7]
[345214948,1734091846722,-152.97605,0.00027945,7]
[345214949,1734091846733,-574.69,0.00027945,7]
[345214950,1734091846744,-500.0,0.00027945,7]
[345214951,1734091846755,-500.0,0.00027945,7]
[345214952,1734091846766,-500.0,0.00027945,7]
[345214953,1734091846776,-947.84,0.00027945,7]
[345214954,1734091846786,-500.0,0.00027945,7]
[345214955,1734091846795,-500.0,0.00027945,7]
[345214956,1734091846805,-608.85,0.00027945,7]
[345214957,1734091846814,-500.0,0.00027945,7]
[345214958,1734091846824,-2488.32,0.00027945,7]
[345214959,1734091846835,-500.0,0.00027945,7]
[345214960,1734091846846,-382.873033,0.00027945,7]
[345214961,1734091846857,-382.873033,0.00027945,7]
[345214962,1734091846869,-500.0,0.00027945,7]
[345214963,1734091846879,-382.873033,0.00027945,7]
[345214964,1734091846890,-382.873033,0.00027945,7]
[345214965,1734091846900,-539.7758436,0.00027945,7]
[345214966,1734091846910,-500.0,0.00027945,7]
[345214967,1734091846919,-876.08,0.00027945,7]
[345214968,1734091846929,-540.65,0.00027945,7]
[345214969,1734091846939,-506.88,0.00027945,7]
[345214970,1734091846949,-500.0,0.00027945,7]
[345214971,1734091846959,-758.33,0.00027945,7]
[345214972,1734091846969,-151.0,0.00027945,7]
[345214973,1734091846978,-151.0,0.00027945,7]
[345214974,1734091846990,-500.0,0.00027945,7]
[345214975,1734091847002,-510.1718374,0.00027945,7]
[345214976,1734091847012,-150.12,0.00027945,7]
[345214977,1734091847023,-150.02,0.00027945,7]
[345214978,1734091847034,-150.02,0.00027945,2]
[345214979,1734091847044,-150.02,0.00027945,7]
[345214980,1734091847054,-500.0,0.00027945,7]
[345214981,1734091847066,-150.02,0.00027945,7]
[345214982,1734091847076,-150.22,0.00027945,7]
[345214983,1734091847088,-150.30608059,0.00027945,7]
[345214984,1734091847098,-500.0,0.00027945,7]
[345214985,1734091847108,-500.0,0.00027945,7]
[345214986,1734091847118,-500.0,0.00027945,7]
[345214987,1734091847130,-500.0,0.00027945,7]
[345214988,1734091847140,-500.0,0.00027945,7]
[345214989,1734091847150,-661.92,0.00027945,7]
[345214990,1734091847160,-2149.23,0.00027945,7]
[345214991,1734091847171,-500.0,0.00027945,7]
[345214992,1734091847182,-500.0,0.00027945,7]
[345214993,1734091847191,-500.0,0.00027945,7]
[345214994,1734091847201,-552.33,0.00027945,7]
[345214995,1734091847211,-509.53,0.00027945,7]
[345214996,1734091847222,-500.0,0.00027945,7]
[345214997,1734091847232,-1839.89,0.00027945,7]
[345214998,1734091847242,-500.0,0.00027945,7]
[345214999,1734091847251,-500.0,0.00027945,7]
[345215000,1734091847263,-911.59,0.00027945,7]
[345215001,1734091847273,-500.0,0.00027945,7]
[345215002,1734091847283,-500.0,0.00027945,7]
[345215003,1734091847293,-500.0,0.00027945,7]
[345215004,1734091847303,-1151.71,0.00027945,7]
[345215005,1734091847314,-3706.22,0.00027945,7]
[345215006,1734091847324,-550.01,0.00027945,7]
[345215007,1734091847335,-500.0,0.00027945,7]
[345215008,1734091847345,-181.34287256,0.00027945,7]
[345215009,1734091847354,-1556.05,0.00027945,7]
[345215010,1734091847364,-3961.78,0.00027945,7]
[345215011,1734091847374,-1079.48,0.00027945,7]
[345215012,1734091847384,-525.83671696,0.00027945,7]
[345215013,1734091847394,-500.0,0.00027945,7]
[345215014,1734091847404,-500.0,0.00027945,7]
[345215015,1734091847413,-151.0,0.00027945,7]
[345215016,1734091847423,-282.85783,0.00027945,7]
[345215017,1734091847433,-1008.89,0.00027945,7]
[345215018,1734091847443,-500.0,0.00027945,7]
[345215019,1734091847453,-500.0,0.00027945,7]
[345215020,1734091847464,-500.0,0.00027945,7]
[345215021,1734091847475,-1365.17,0.00027945,7]
[345215022,1734091847485,-500.0,0.00027945,7]
[345215023,1734091847495,-500.0,0.00027945,7]
[345215024,1734091847505,-500.0,0.00027945,7]
[345215025,1734091847514,-500.0,0.00027945,7]
[345215026,1734091847524,-500.0,0.00027945,7]
[345215027,1734091847534,-500.0,0.00027945,7]
[345215028,1734091847544,-500.0,0.00027945,7]
[345215029,1734091847555,-500.0,0.00027945,7]
[345215030,1734091847565,-531.52,0.00027945,7]
[345215031,1734091847574,-573.04,0.00027945,7]
[345215032,1734091847586,-500.0,0.00027945,7]
[345215033,1734091847596,-500.0,0.00027945,7]
[345215034,1734091847606,-500.0,0.00027945,7]
[345215035,1734091847615,-711.44,0.00027945,7]
[345215036,1734091847625,-3291.05,0.00027945,7]
[345215037,1734091847635,-763.56,0.00027945,7]
[345215038,1734091847645,-7606.93,0.00027945,7]
[345215039,1734091847655,-500.0,0.00027945,7]
[345215040,1734091847665,-1342.78,0.00027945,7]
[345215041,1734091847676,-4190.92,0.00027945,7]
[345215042,1734091847686,-520.06,0.00027945,7]
[345215043,1734091847696,-1028.48,0.00027945,7]
[345215044,1734091847706,-500.0,0.00027945,7]
[345215045,1734091847716,-739.89,0.00027945,7]
[345215046,1734091847726,-500.0,0.00027945,7]
[345215047,1734091847736,-1263.06,0.00027945,7]
[345215048,1734091847746,-1317.54,0.00027945,7]
[345215049,1734091847756,-2675.78,0.00027945,7]
[345215050,1734091847766,-500.0,0.00027945,7]
[345215051,1734091847777,-651.59,0.00027945,7]
[345215052,1734091847788,-507.9,0.00027945,7]
[345215053,1734091847798,-500.0,0.00027945,7]
[345215054,1734091847809,-500.0,0.00027945,7]
[345215055,1734091847819,-500.0,0.00027945,7]
[345215056,1734091847829,-1455.5,0.00027945,7]
[345215057,1734091847839,-500.0,0.00027945,7]
[345215058,1734091847850,-500.0,0.00027945,7]
[345215059,1734091847861,-504.48132451,0.00027945,7]
[345215060,1734091847870,-1461.6,0.00027945,7]
[345215061,1734091847880,-500.0,0.00027945,7]
[345215062,1734091847891,-556.50540601,0.00027945,7]
[345215063,1734091847901,-835.44,0.00027945,7]
[345215064,1734091847911,-978.03,0.00027945,7]
[345215065,1734091847921,-500.0,0.00027945,7]
[345215066,1734091847932,-151.0,0.00027945,7]
[345215067,1734091847942,-555.87,0.00027945,7]
[345215068,1734091847952,-163.292658,0.00027945,7]
[345215069,1734091847963,-683.02,0.00027945,7]
[345215070,1734091847973,-500.0,0.00027945,7]
[345215071,1734091847983,-500.0,0.00027945,7]
[345215072,1734091847997,-500.0,0.00027945,7]
[345215073,1734091848007,-500.0,0.00027945,7]
[345215074,1734091848017,-914.56,0.00027945,7]
[345215075,1734091848028,-1797.32,0.00027945,7]
[345215076,1734091848039,-807.43,0.00027945,7]
[345215077,1734091848049,-839.4,0.00027945,7]
[345215078,1734091848214,-500.0,0.00027945,7]
[345215079,1734091848225,-500.0,0.00027945,7]
[345215080,1734091848235,-500.0,0.00027945,7]
[345215081,1734091848246,-518.73,0.00027945,7]
[345215082,1734091848255,-758.44,0.00027945,7]
[345215083,1734091848265,-500.0,0.00027945,7]
[345215084,1734091848275,-500.0,0.00027945,7]
[345215085,1734091848284,-552.47,0.00027945,7]
[345215086,1734091848294,-5026.06,0.00027945,7]
[345215087,1734091848304,-500.0,0.00027945,7]
[345215088,1734091848314,-502.00871913,0.00027945,7]
[345215089,1734091848324,-500.0,0.00027973,5]
[345215090,1734091848335,-509.87277744,0.0002799,2]
[345215091,1734091848344,-162.4,0.00028,2]
[345215092,1734091848354,-10000.0,0.00028,10]
[345215093,1734091848364,-19721.39318639,0.00028,7]
[345215094,1734091848374,-382.873033,0.00028,7]
[345215095,1734091848383,-382.873033,0.00028,7]
[345215096,1734091848393,-151.0,0.00028,7]
[345215097,1734091848402,-698.39324381,0.00028107,2]
[345215098,1734091848411,-151.0,0.000282,14]
[345215099,1734091848420,-389.0,0.0002821,23]
[345215100,1734091848430,-150.02,0.00028219,7]
[345215101,1734091848440,-200.06,0.00028219,7]
[345215102,1734091848449,-150.23,0.00028219,7]
[345215103,1734091848458,-150.02,0.00028219,7]
[345215104,1734091848468,-150.02,0.00028219,7]
[345215105,1734091848478,-871.08,0.00028219,7]
[345215106,1734091848488,-500.0,0.00028219,7]
[345215107,1734091848498,-177.61392238,0.00028219,7]
[345215108,1734091848508,-500.0,0.00028219,7]
[345215109,1734091848518,-500.0,0.00028219,7]
[345215110,1734091848528,-500.0,0.00028219,7]
[345215111,1734091848537,-500.0,0.00028219,7]
[345215112,1734091848546,-500.0,0.00028219,7]
[345215113,1734091848556,-1160.79,0.00028219,7]
[345215114,1734091848566,-319.46133443,0.00028219,2]
[345215115,1734091848576,-500.0,0.00028219,7]
[345215116,1734091848587,-472.47876304,0.00028219,7]
[345215117,1734091848597,-509.60172836,0.00028219,7]
[345215118,1734091848607,-586.33300652,0.00028219,7]
[345215119,1734091848616,-500.0,0.00028219,7]
[345215120,1734091848626,-500.0,0.00028219,7]
[345215121,1734091848636,-500.0,0.00028219,7]
[345215122,1734091848645,-901.64,0.00028219,7]
[345215123,1734091848655,-500.0,0.00028219,7]
[345215124,1734091848665,-502.03,0.00028219,7]
[345215125,1734091848675,-500.0,0.00028219,7]
[345215126,1734091848685,-500.0,0.00028219,7]
[345215127,1734091848695,-500.0,0.00028219,7]
[345215128,1734091848705,-500.0,0.00028219,7]
[345215129,1734091848715,-500.0,0.00028219,7]
[345215130,1734091848725,-1260.84,0.00028219,7]
[345215131,1734091848734,-500.0,0.00028219,7]
[345215132,1734091848745,-500.0,0.00028219,7]
[345215133,1734091848755,-500.0,0.00028219,7]
[345215134,1734091848764,-1225.31,0.00028219,7]
[345215135,1734091848774,-500.0,0.00028219,7]
[345215136,1734091848783,-500.0,0.00028219,7]
[345215137,1734091848793,-500.0,0.00028219,7]
[345215138,1734091848802,-500.0,0.00028219,7]
[345215139,1734091848812,-500.0,0.00028219,7]
[345215140,1734091848822,-1341.25,0.00028219,7]
[345215141,1734091848833,-500.0,0.00028219,7]
[345215142,1734091848851,-500.0,0.00028219,7]
[345215143,1734091848862,-575.59,0.00028219,7]
[345215144,1734091848872,-500.0,0.00028219,7]
[345215145,1734091848881,-500.0,0.00028219,7]
[345215146,1734091848891,-546.88,0.00028219,7]
[345215147,1734091848905,-500.0,0.00028219,7]
[345215148,1734091848915,-552.93,0.00028219,7]
[345215149,1734091848925,-651.03,0.00028219,7]
[345215150,1734091848935,-168.0,0.00028219,7]
[345215151,1734091848945,-500.0,0.00028219,7]
[345215152,1734091848955,-500.0,0.00028219,7]
[345215153,1734091848965,-500.0,0.00028219,7]
[345215154,1734091848975,-1089.68,0.00028219,7]
[345215155,1734091848987,-617.51524889,0.00028219,7]
[345215156,1734091848998,-500.0,0.00028219,7]
[345215157,1734091849008,-500.0,0.00028219,7]
[345215158,1734091849018,-733.84,0.00028219,7]
[345215159,1734091849029,-482.3470769,0.00028219,7]
[345215160,1734091849039,-500.0,0.00028219,7]
[345215161,1734091849049,-500.0,0.00028219,7]
[345215162,1734091849059,-500.0,0.00028219,7]
[345215163,1734091849069,-1107.91,0.00028219,7]
[345215164,1734091849079,-185.39112816,0.00028219,7]
[345215165,1734091849088,-500.0,0.00028219,7]
[345215166,1734091849098,-500.0,0.00028219,7]
[345215167,1734091849108,-500.0,0.00028219,7]
[345215168,1734091849118,-693.88,0.00028219,7]
[345215169,1734091849127,-151.0,0.00028219,7]
[345215170,1734091849137,-684.71,0.00028219,7]
[345215171,1734091849147,-151.0,0.00028219,7]
[345215172,1734091849157,-500.0,0.00028219,7]
[345215173,1734091849167,-857.5,0.00028219,7]
[345215174,1734091849177,-500.0,0.00028219,7]
[345215175,1734091849187,-1568.0,0.00028219,7]
[345215176,1734091849196,-500.0,0.00028219,7]
[345215177,1734091849207,-500.0,0.00028219,7]
[345215178,1734091849216,-1086.94,0.00028219,7]
[345215179,1734091849226,-500.0,0.00028219,7]
[345215180,1734091849236,-500.0,0.00028219,7]
[345215181,1734091849246,-1844.52,0.00028219,7]
[345215182,1734091849256,-500.0,0.00028219,7]
[345215183,1734091849266,-500.0,0.00028219,7]
[345215184,1734091849276,-729.39,0.00028219,7]
[345215185,1734091849286,-500.0,0.00028219,7]
[345215186,1734091849296,-625.06,0.00028219,7]
[345215187,1734091849306,-500.0,0.00028219,7]
[345215188,1734091849316,-926.09,0.00028219,7]
[345215189,1734091849326,-500.0,0.00028219,7]
[345215190,1734091849342,-500.0,0.00028219,7]
[345215191,1734091849352,-508.60013943,0.00028219,7]
[345215192,1734091849361,-167.77685559,0.00028219,7]
[345215193,1734091849371,-500.0,0.00028219,7]
[345215194,1734091849380,-500.0,0.00028219,7]
[345215195,1734091849390,-500.0,0.00028219,7]
[345215196,1734091849400,-218.07805438,0.00028219,7]
[345215197,1734091849409,-3595.28,0.00028219,7]
[345215198,1734091849419,-821.18,0.00028219,7]
[345215199,1734091849428,-535.82,0.00028219,7]
[345215200,1734091849438,-539.01,0.00028219,7]
[345215201,1734091849447,-819.26,0.00028219,7]
[345215202,1734091849457,-500.0,0.00028219,7]
[345215203,1734091849466,-500.0,0.00028219,7]
[345215204,1734091849476,-500.0,0.00028219,7]
[345215205,1734091849485,-500.0,0.00028219,7]
[345215206,1734091849494,-677.7,0.00028219,7]
[345215207,1734091849504,-500.0,0.00028219,7]
[345215208,1734091849513,-568.12,0.00028219,7]
[345215209,1734091849523,-574.69,0.00028219,7]
[345215210,1734091849532,-500.0,0.00028219,7]
[345215211,1734091849542,-500.0,0.00028219,7]
[345215212,1734091849552,-500.0,0.00028219,7]
[345215213,1734091849562,-947.84,0.00028219,7]
[345215214,1734091849571,-500.0,0.00028219,7]
[345215215,1734091849581,-500.0,0.00028219,7]
[345215216,1734091849591,-608.85,0.00028219,7]
[345215217,1734091849600,-500.0,0.00028219,7]
[345215218,1734091849609,-2488.32,0.00028219,7]
[345215219,1734091849618,-500.0,0.00028219,7]
[345215220,1734091849627,-382.873033,0.00028219,7]
[345215221,1734091849636,-382.873033,0.00028219,7]
[345215222,1734091849646,-500.0,0.00028219,7]
[345215223,1734091849656,-382.873033,0.00028219,7]
[345215224,1734091849665,-382.873033,0.00028219,7]
[345215225,1734091849675,-500.0,0.00028219,7]
[345215226,1734091849684,-876.08,0.00028219,7]
[345215227,1734091849693,-540.65,0.00028219,7]
[345215228,1734091849702,-506.88,0.00028219,7]
[345215229,1734091849711,-500.0,0.00028219,7]
[345215230,1734091849720,-758.33,0.00028219,7]
[345215231,1734091849729,-151.0,0.00028219,7]
[345215232,1734091849739,-151.0,0.00028219,7]
[345215233,1734091849748,-500.0,0.00028219,7]
[345215234,1734091849757,-232.18037711,0.00028219,7]
[345215235,1734091849766,-500.0,0.00028219,7]
[345215236,1734091849776,-500.0,0.00028219,7]
[345215237,1734091849784,-500.0,0.00028219,7]
[345215238,1734091849793,-500.0,0.00028219,7]
[345215239,1734091849802,-500.0,0.00028219,7]
[345215240,1734091849811,-661.92,0.00028219,7]
[345215241,1734091849821,-2149.23,0.00028219,7]
[345215242,1734091849836,-500.0,0.00028219,7]
[345215243,1734091849850,-500.0,0.00028219,7]
[345215244,1734091849864,-500.0,0.00028219,7]
[345215245,1734091849877,-552.33,0.00028219,7]
[345215246,1734091849889,-509.53,0.00028219,7]
[345215247,1734091849900,-500.0,0.00028219,7]
[345215248,1734091849913,-1839.89,0.00028219,7]
[345215249,1734091849926,-500.0,0.00028219,7]
[345215250,1734091849939,-500.0,0.00028219,7]
[345215251,1734091849952,-911.59,0.00028219,7]
[345215252,1734091849966,-500.0,0.00028219,7]
[345215253,1734091849980,-500.0,0.00028219,7]
[345215254,1734091849996,-500.0,0.00028219,7]
[345215255,1734091850010,-1151.71,0.00028219,7]
[345215256,1734091850024,-3706.22,0.00028219,7]
[345215257,1734091850037,-550.01,0.00028219,7]
[345215258,1734091850051,-258.49543892,0.00028219,7]
[345215259,1734091850064,-1556.05,0.00028219,7]
[345215260,1734091850077,-3961.78,0.00028219,7]
[345215261,1734091850090,-1079.48,0.00028219,7]
[345215262,1734091850105,-500.0,0.00028219,7]
[345215263,1734091850119,-500.0,0.00028219,7]
[345215264,1734091850131,-1008.89,0.00028219,7]
[345215265,1734091850144,-500.0,0.00028219,7]
[345215266,1734091850155,-500.0,0.00028219,7]
[345215267,1734091850167,-500.0,0.00028219,7]
[345215268,1734091850180,-1365.17,0.00028219,7]
[345215269,1734091850192,-500.0,0.00028219,7]
[345215270,1734091850206,-500.0,0.00028219,7]
[345215271,1734091850218,-500.0,0.00028219,7]
[345215272,1734091850231,-500.0,0.00028219,7]
[345215273,1734091850244,-412.2438536,0.00028219,7]
[345215274,1734091850256,-500.0,0.00028219,7]
[345215275,1734091850270,-500.0,0.00028219,7]
[345215276,1734091850284,-500.0,0.00028219,7]
[345215277,1734091850298,-531.52,0.00028219,7]
[345215278,1734091850311,-573.04,0.00028219,7]
[345215279,1734091850324,-500.0,0.00028219,7]
[345215280,1734091850336,-500.0,0.00028219,7]
[345215281,1734091850346,-500.0,0.00028219,7]
[345215282,1734091850357,-711.44,0.00028219,7]
[345215283,1734091850370,-3291.05,0.00028219,7]
[345215284,1734091850384,-763.56,0.00028219,7]
[345215285,1734091850396,-7606.93,0.00028219,7]
[345215286,1734091850409,-500.0,0.00028219,7]
[345215287,1734091850419,-1342.78,0.00028219,7]
[345215288,1734091850431,-4190.92,0.00028219,7]
[345215289,1734091850442,-520.06,0.00028219,7]
[345215290,1734091850455,-1028.48,0.00028219,7]
[345215291,1734091850467,-500.0,0.00028219,7]
[345215292,1734091850479,-739.89,0.00028219,7]
[345215293,1734091850489,-500.0,0.00028219,7]
[345215294,1734091850500,-1263.06,0.00028219,7]
[345215295,1734091850512,-1317.54,0.00028219,7]
[345215296,1734091850523,-2675.78,0.00028219,7]
[345215297,1734091850534,-500.0,0.00028219,7]
[345215298,1734091850546,-651.59,0.00028219,7]
[345215299,1734091850558,-507.9,0.00028219,7]
[345215300,1734091850569,-500.0,0.00028219,7]
[345215301,1734091850583,-500.0,0.00028219,7]
[345215302,1734091850594,-500.0,0.00028219,7]
[345215303,1734091850605,-1455.5,0.00028219,7]
[345215304,1734091850617,-500.0,0.00028219,7]
[345215305,1734091850628,-500.0,0.00028219,7]
[345215306,1734091850640,-1461.6,0.00028219,7]
[345215307,1734091850651,-319.46973342,0.00028219,7]
[345215308,1734091850663,-835.44,0.00028219,7]
[345215309,1734091850675,-978.03,0.00028219,7]
[345215310,1734091850686,-500.0,0.00028219,7]
[345215311,1734091850697,-555.87,0.00028219,7]
[345215312,1734091850709,-683.02,0.00028219,7]
[345215313,1734091850720,-500.0,0.00028219,7]
[345215314,1734091850731,-500.0,0.00028219,7]
[345215315,1734091850742,-524.64347545,0.00028219,7]
[345215316,1734091850753,-500.0,0.00028219,7]
[345215317,1734091850764,-914.56,0.00028219,7]
[345215318,1734091850775,-1797.32,0.00028219,7]
[345215319,1734091850786,-807.43,0.00028219,7]
[345215320,1734091850797,-839.4,0.00028219,7]
[345215321,1734091850809,-500.0,0.00028219,7]
[345215322,1734091850820,-500.0,0.00028219,7]
[345215323,1734091850832,-500.0,0.00028219,7]
[345215324,1734091850846,-518.73,0.00028219,7]
[345215325,1734091850857,-758.44,0.00028219,7]
[345215326,1734091850868,-500.0,0.00028219,7]
[345215327,1734091850880,-645.86380731,0.00028219,7]
[345215328,1734091850891,-552.47,0.00028219,7]
[345215329,1734091850902,-5026.06,0.00028219,7]
[345215330,1734091850913,-500.0,0.00028219,7]
[345215331,1734091850924,-151.0,0.000283,17]
[345215332,1734091850935,-5000.0,0.00028359,16]
[345215333,1734091850946,-245.0,0.00028369,2]
[345215334,1734091850957,-698.39324381,0.00028369,2]
[345215335,1734091850968,-151.0,0.000284,17]
[345215336,1734091850980,-151.0,0.000284,18]
[345215337,1734091850993,-2000.0,0.000284,2]
[345215338,1734091851003,-150.02,0.00028493,7]
[345215339,1734091851015,-150.02,0.00028493,7]
[345215340,1734091851026,-200.16,0.00028493,7]
[345215341,1734091851038,-871.08,0.00028493,7]
[345215342,1734091851049,-500.0,0.00028493,7]
[345215343,1734091851060,-616.39019452,0.00028493,7]
[345215344,1734091851072,-500.0,0.00028493,7]
[345215345,1734091851085,-500.0,0.00028493,7]
[345215346,1734091851096,-552.50897333,0.00028493,7]
[345215347,1734091851108,-1160.79,0.00028493,7]
[345215348,1734091851119,-505.36816575,0.00028493,7]
[345215349,1734091851131,-500.0,0.00028493,7]
[345215350,1734091851143,-500.0,0.00028493,7]
[345215351,1734091851154,-500.0,0.00028493,7]
[345215352,1734091851165,-901.64,0.00028493,7]
[345215353,1734091851177,-500.0,0.00028493,7]
[345215354,1734091851188,-502.03,0.00028493,7]
[345215355,1734091851199,-500.0,0.00028493,7]
[345215356,1734091851211,-500.0,0.00028493,7]
[345215357,1734091851222,-508.62614431,0.00028493,7]
[345215358,1734091851232,-500.0,0.00028493,7]
[345215359,1734091851243,-500.0,0.00028493,7]
[345215360,1734091851254,-1260.84,0.00028493,7]